fUSD/lending_fUSD_20251227
["ID","MTS","AMOUNT","RATE_DAILY","PERIOD"]
[399894024,1766827831802,-282.71829792,0.0001304,2]
[399894025,1766827831814,-658.19883048,0.0001304,2]
[399894026,1766827831826,-99.69884927,0.0001304,2]
[399894027,1766827831836,-200.30115073,0.00013041,2]
[399894028,1766827831847,-999.69884927,0.00013041,2]
[399894029,1766827831857,-300.0,0.00013043,2]
[399894030,1766827831868,-300.0,0.00013043,2]
[399894031,1766827831877,-300.0,0.00013043,2]
[399894032,1766827831887,-13312.4,0.00013044,2]
[399894033,1766827831897,-167.02443224,0.00013148,2]
[399894034,1766827831906,-150.0,0.00013163,2]
[399894035,1766827831916,-259.98409885,0.00013164,2]
[399894036,1766827831926,-4785.32619109,0.00013164,2]
[399894037,1766827831937,-741.54979015,0.00013164,2]
[399894038,1766827831952,-2642.55,0.00013164,2]
[399894054,1766827839934,-29999.91627,0.00013164,2]
[399894055,1766827839945,-662.19397894,0.00013164,2]
[399894070,1766827843896,-159.82665654,0.00013163,2]
[399894071,1766827843906,-674.05664267,0.00013163,2]
[399894072,1766827843917,-42.87670079,0.00013163,2]
[399894105,1766828033345,-491.43910273,0.00013064,2]
[399894112,1766828072031,-167.02443224,0.00013063,2]
[399894113,1766828072053,-132.97556776,0.00013064,2]
[399894115,1766828077373,-414.58814077,0.00013064,2]
[399894116,1766828080580,-221.90119514,0.00013064,2]
[399894117,1766828086148,-267.45387432,0.00013064,2]
[399894118,1766828087719,-239.57696139,0.00013064,2]
[399894119,1766828089703,209.46,0.00012748,2]
[399894140,1766828291523,263.8,0.0001223,2]
[399894143,1766828325671,3240.0,0.00012222,2]
[399894144,1766828339721,6286.75,0.00012222,2]
[399894145,1766828339744,4094.73,0.00012222,2]
[399894146,1766828352958,289.3,0.00030137,120]
[399894163,1766828483258,-198.47416993,0.00012889,2]
[399894164,1766828494424,200.0,0.00012434,2]
[399894165,1766828513347,-57.52583007,0.00012889,2]
[399894166,1766828513375,-118.51500711,0.00012903,2]
[399894167,1766828527849,815.35,0.00012491,2]
[399894168,1766828543271,-244.21326873,0.00012882,2]
[399894169,1766828543633,-255.78673127,0.00012882,2]
[399894170,1766828543665,-181.48499289,0.00012903,2]
[399894171,1766828543696,-500.0,0.00012909,2]
[399894172,1766828543728,-500.0,0.00012937,2]
[399894173,1766828543759,-464.91531166,0.00012964,2]
[399894174,1766828552666,-2101.74763736,0.00013053,2]
[399894175,1766828555660,-783.11973712,0.00013053,2]
[399894176,1766828555684,-8433.77052576,0.00013053,2]
[399894180,1766828603292,-373.95916282,0.00012997,2]
[399894181,1766828606770,-262.67722882,0.00012997,2]
[399894182,1766828608848,-430.84099006,0.00012997,2]
[399894183,1766828610945,-182.34796988,0.00012997,2]
[399894184,1766828611517,564.0,0.00030137,120]
[399894185,1766828614767,-192.75356912,0.00012997,2]
[399894186,1766828616710,-671.52377087,0.00012997,2]
[399894187,1766828619255,-178.24211257,0.00012997,2]
[399894188,1766828621414,-187.76251217,0.00012997,2]
[399894189,1766828622954,-166.33236124,0.00012997,2]
[399894190,1766828625564,-500.0,0.00012997,2]
[399894191,1766828628962,-229.22521654,0.00012997,2]
[399894192,1766828678335,-197.4140413,0.00012997,2]
[399894194,1766828709696,777.0,0.00030137,120]
[399894195,1766828745499,1260.84462794,0.0003013,120]
[399894245,1766828843270,-257.0468125,0.00012878,2]
[399894251,1766828858269,-238.0,0.00012878,2]
[399894258,1766828893855,175.08,9.729e-05,2]
[399894259,1766828920870,554.46,0.00012148,2]
[399894260,1766828947646,166.66,0.00012488,2]
[399894261,1766828948260,-198.47900106,0.00012813,2]
[399894262,1766828950634,-224.56179504,0.00012813,2]
[399894290,1766828978259,-333.82944524,0.00012813,2]
[399894291,1766828980291,-165.49172365,0.00012813,2]
[399894292,1766828981829,-170.48221502,0.00012813,2]
[399894293,1766828984562,-153.25117766,0.00012813,2]
[399894294,1766828989646,-500.0,0.00012813,2]
[399894295,1766828996005,150.0,0.00012115,2]
[399894296,1766828998427,-215.57405543,0.00012813,2]
[399894297,1766828998452,-300.86586413,0.00012878,2]
[399894298,1766828999988,-190.30025053,0.00012878,2]
[399894299,1766829023304,-13.78707284,0.00012878,2]
[399894300,1766829023328,-256.0,0.00012878,2]
[399894301,1766829023350,-119.05468816,0.00012905,2]
[399894302,1766829030821,-793.04689128,0.00012905,2]
[399894307,1766829031949,-87.89842056,0.00012905,2]
[399894309,1766829031959,-560.93300829,0.00012933,2]
[399894310,1766829031972,-439.06699171,0.00012933,2]
[399894311,1766829031982,-227.48608645,0.00012951,2]
[399894312,1766829031991,-307.5056954,0.0001296,2]
[399894313,1766829032055,-488.41,0.0001296,2]
[399894314,1766829032067,-204.0843046,0.0001296,2]
[399894315,1766829032078,-1000.0,0.00012988,2]
[399894316,1766829032087,-1000.0,0.00013015,2]
[399894317,1766829032098,-1000.0,0.00013042,2]
[399894318,1766829032108,-1200.0,0.00013048,2]
[399894319,1766829032118,-300.0,0.00013048,2]
[399894320,1766829032127,-300.0,0.00013048,2]
[399894321,1766829032138,-300.0,0.00013049,2]
[399894322,1766829032147,-150.0,0.00013049,2]
[399894323,1766829032157,-309.73977232,0.00013049,2]
[399894324,1766829032169,-890.26022768,0.00013049,2]
[399894325,1766829032179,-500.0,0.0001305,2]
[399894326,1766829032189,-227.08972607,0.0001305,2]
[399894327,1766829032202,-339.50871131,0.0001305,2]
[399894328,1766829032211,-190.23308691,0.0001305,2]
[399894329,1766829032224,-144.83848378,0.0001305,2]
[399894330,1766829032239,-500.0,0.0001305,2]
[399894331,1766829032249,-500.0,0.0001305,2]
[399894332,1766829032259,-500.0,0.0001305,2]
[399894333,1766829032269,-500.0,0.0001305,2]
[399894334,1766829032279,-500.0,0.0001305,2]
[399894335,1766829032289,-500.0,0.0001305,2]
[399894336,1766829032299,-500.0,0.0001305,2]
[399894337,1766829032309,-500.0,0.0001305,2]
[399894338,1766829032318,-500.0,0.0001305,2]
[399894339,1766829032328,-500.0,0.0001305,2]
[399894340,1766829032337,-500.0,0.0001305,2]
[399894341,1766829032347,-500.0,0.0001305,2]
[399894342,1766829032357,-500.0,0.0001305,2]
[399894343,1766829032367,-500.0,0.0001305,2]
[399894344,1766829032376,-500.0,0.0001305,2]
[399894345,1766829032386,-500.0,0.0001305,2]
[399894346,1766829032395,-500.0,0.0001305,2]
[399894347,1766829032406,-500.0,0.0001305,2]
[399894349,1766829032416,-500.0,0.0001305,2]
[399894351,1766829032426,-500.0,0.0001305,2]
[399894353,1766829032436,-500.0,0.0001305,2]
[399894355,1766829032445,-500.0,0.0001305,2]
[399894357,1766829032455,-500.0,0.0001305,2]
[399894359,1766829032464,-500.0,0.0001305,2]
[399894361,1766829032474,-500.0,0.0001305,2]
[399894363,1766829032483,-500.0,0.0001305,2]
[399894365,1766829032494,-500.0,0.0001305,2]
[399894367,1766829032503,-500.0,0.0001305,2]
[399894369,1766829032513,-537.01396614,0.0001305,2]
[399894371,1766829032523,-500.0,0.0001305,2]
[399894373,1766829032532,-500.0,0.0001305,2]
[399894375,1766829032541,-500.0,0.0001305,2]
[399894377,1766829032551,-500.0,0.0001305,2]
[399894379,1766829032560,-500.0,0.0001305,2]
[399894381,1766829032570,-500.0,0.0001305,2]
[399894382,1766829032579,-500.0,0.0001305,2]
[399894383,1766829032593,-500.0,0.0001305,2]
[399894384,1766829032603,-500.0,0.0001305,2]
[399894385,1766829032612,-500.0,0.0001305,2]
[399894386,1766829032622,-500.0,0.0001305,2]
[399894387,1766829032632,-500.0,0.0001305,2]
[399894388,1766829032642,-500.0,0.0001305,2]
[399894389,1766829032651,-500.0,0.0001305,2]
[399894390,1766829032662,-500.0,0.0001305,2]
[399894391,1766829032673,-347.65196022,0.0001305,2]
[399894392,1766829032683,-1026.536879,0.0001305,2]
[399894393,1766829032954,-1026.536879,0.0001305,2]
[399894394,1766829032964,-1026.536879,0.0001305,2]
[399894395,1766829032974,-1026.536879,0.0001305,2]
[399894396,1766829032983,-1026.536879,0.0001305,2]
[399894397,1766829032993,-1026.536879,0.0001305,2]
[399894398,1766829033003,-1026.536879,0.0001305,2]
[399894399,1766829033013,-1026.536879,0.0001305,2]
[399894400,1766829033023,-1026.536879,0.0001305,2]
[399894401,1766829033033,-1026.536879,0.0001305,2]
[399894402,1766829033043,-1026.536879,0.0001305,2]
[399894403,1766829033052,-1026.536879,0.0001305,2]
[399894404,1766829033066,-1026.536879,0.0001305,2]
[399894405,1766829033076,-1026.536879,0.0001305,2]
[399894406,1766829033086,-1026.536879,0.0001305,2]
[399894407,1766829033096,-1026.536879,0.0001305,2]
[399894408,1766829033106,-1026.536879,0.0001305,2]
[399894409,1766829033116,-1026.536879,0.0001305,2]
[399894410,1766829033125,-1026.536879,0.0001305,2]
[399894411,1766829033135,-1026.536879,0.0001305,2]
[399894412,1766829033145,-1026.536879,0.0001305,2]
[399894413,1766829033155,-1026.536879,0.0001305,2]
[399894414,1766829033165,-1026.536879,0.0001305,2]
[399894415,1766829033175,-1026.536879,0.0001305,2]
[399894416,1766829033186,-1026.536879,0.0001305,2]
[399894417,1766829033196,-1026.536879,0.0001305,2]
[399894418,1766829033206,-1026.536879,0.0001305,2]
[399894419,1766829033216,-1026.536879,0.0001305,2]
[399894420,1766829033225,-1026.536879,0.0001305,2]
[399894421,1766829033236,-1026.536879,0.0001305,2]
[399894422,1766829033246,-1026.536879,0.0001305,2]
[399894423,1766829033260,-1026.536879,0.0001305,2]
[399894424,1766829033270,-1026.536879,0.0001305,2]
[399894425,1766829033280,-1026.536879,0.0001305,2]
[399894426,1766829033289,-1026.536879,0.0001305,2]
[399894427,1766829033299,-1026.536879,0.0001305,2]
[399894428,1766829033310,-1026.536879,0.0001305,2]
[399894429,1766829033320,-1026.536879,0.0001305,2]
[399894430,1766829033329,-1026.536879,0.0001305,2]
[399894431,1766829033340,-1026.536879,0.0001305,2]
[399894432,1766829033349,-1026.536879,0.0001305,2]
[399894433,1766829033359,-1026.536879,0.0001305,2]
[399894434,1766829033369,-1026.536879,0.0001305,2]
[399894435,1766829033379,-1026.536879,0.0001305,2]
[399894436,1766829033388,-1026.536879,0.0001305,2]
[399894437,1766829033398,-1026.536879,0.0001305,2]
[399894438,1766829033408,-1026.53687896,0.0001305,2]
[399894439,1766829033419,-1134.27,0.0001305,2]
[399894440,1766829033428,-59601.00489645,0.00013051,2]
[399894441,1766829033443,-20969.07925521,0.00013051,2]
[399894442,1766829033455,-50774.3469319,0.00013051,2]
[399894443,1766829033466,-82825.91040543,0.00013051,2]
[399894444,1766829033483,-853.06165973,0.00013051,2]
[399894445,1766829033495,-889.22490028,0.00013051,2]
[399894446,1766829033506,-8358.6192992,0.00013051,2]
[399894447,1766829033517,-2430.83962756,0.00013051,2]
[399894448,1766829033528,-4035.05288234,0.00013051,2]
[399894449,1766829033540,-4031.53528395,0.00013051,2]
[399894453,1766829038008,-2670.1881697,0.00013051,2]
[399894454,1766829038062,-577.01338747,0.00013051,2]
[399894638,1766829040046,-3889.325472,0.00013051,2]
[399894640,1766829040058,-652.52051476,0.00013051,2]
[399894642,1766829040069,-1560.3509962,0.00013051,2]
[399894644,1766829040081,-443.54392072,0.00013051,2]
[399894696,1766829040592,-1.7e-07,0.00013051,2]
[399894699,1766829040604,-755438.38239693,0.00013051,2]
[399894701,1766829040614,-2425.0106,0.00013051,2]
[399894702,1766829040623,-2500.0,0.00013051,2]
[399894704,1766829040633,-10000.0,0.00013053,2]
[399894706,1766829040642,-200.0,0.00013054,2]
[399894708,1766829040652,-207.4,0.00013054,2]
[399894710,1766829040662,-215.0738,0.00013054,2]
[399894712,1766829040672,-353.23885665,0.00013054,2]
[399894715,1766829040685,-1000.0,0.0001307,2]
[399894718,1766829040694,-7230.1108991,0.00013084,2]
[399894721,1766829040704,-1000.0,0.00013097,2]
[399894724,1766829040713,-1000.0,0.00013125,2]
[399894726,1766829040723,-3040.6583644,0.00013139,2]
[399894728,1766829040732,-160000.8325957,0.00013151,2]
[399894730,1766829040742,-1000.0,0.00013152,2]
[399894732,1766829040751,-200.0,0.00013156,2]
[399894734,1766829040760,-200.0,0.00013156,2]
[399894736,1766829040769,-151.0,0.00013156,2]
[399894738,1766829040778,-151.0,0.00013156,2]
[399894740,1766829040787,-151.0,0.00013156,2]
[399894742,1766829040797,-151.0,0.00013156,2]
[399894744,1766829040807,-250.0,0.00013156,2]
[399894746,1766829040816,-250.0,0.00013156,2]
[399894747,1766829040825,-151.0,0.00013156,2]
[399894749,1766829040835,-250.0,0.00013156,2]
[399894751,1766829040844,-261.33546544,0.00013156,2]
[399894753,1766829040853,-151.0,0.00013156,2]
[399894755,1766829040863,-250.0,0.00013156,2]
[399894757,1766829040872,-151.0,0.00013156,2]
[399894759,1766829040882,-250.0,0.00013156,2]
[399894761,1766829040891,-151.0,0.00013156,2]
[399894763,1766829040900,-250.0,0.00013156,2]
[399894765,1766829040909,-500.0,0.00013156,2]
[399894767,1766829040919,-151.0,0.00013156,2]
[399894768,1766829040928,-250.0,0.00013156,2]
[399894770,1766829040938,-500.0,0.00013156,2]
[399894772,1766829040947,-500.0,0.00013156,2]
[399894774,1766829040957,-151.0,0.00013156,2]
[399894776,1766829040966,-250.0,0.00013156,2]
[399894778,1766829040976,-500.0,0.00013156,2]
[399894780,1766829040985,-500.0,0.00013156,2]
[399894782,1766829040995,-151.0,0.00013156,2]
[399894784,1766829041004,-250.0,0.00013156,2]
[399894786,1766829041014,-500.0,0.00013156,2]
[399894788,1766829041023,-500.0,0.00013156,2]
[399894789,1766829041033,-151.0,0.00013156,2]
[399894791,1766829041042,-250.0,0.00013156,2]
[399894793,1766829041051,-500.0,0.00013156,2]
[399894795,1766829041061,-500.0,0.00013156,2]
[399894797,1766829041070,-151.0,0.00013156,2]
[399894799,1766829041079,-250.0,0.00013156,2]
[399894801,1766829041089,-500.0,0.00013156,2]
[399894803,1766829041099,-500.0,0.00013156,2]
[399894805,1766829041109,-151.0,0.00013156,2]
[399894806,1766829041118,-250.0,0.00013156,2]
[399894808,1766829041127,-500.0,0.00013156,2]
[399894810,1766829041137,-500.0,0.00013156,2]
[399894812,1766829041147,-151.0,0.00013156,2]
[399894814,1766829041156,-500.0,0.00013156,2]
[399894816,1766829041167,-500.0,0.00013156,2]
[399894818,1766829041177,-151.0,0.00013156,2]
[399894820,1766829041187,-500.0,0.00013156,2]
[399894822,1766829041196,-500.0,0.00013156,2]
[399894824,1766829041206,-500.0,0.00013156,2]
[399894825,1766829041216,-151.0,0.00013156,2]
[399894826,1766829041225,-500.0,0.00013156,2]
[399894827,1766829041235,-462.02607038,0.00013156,2]
[399894828,1766829041246,-500.0,0.00013156,2]
[399894829,1766829041256,-151.0,0.00013156,2]
[399894830,1766829041266,-500.0,0.00013156,2]
[399894831,1766829041275,-500.0,0.00013156,2]
[399894832,1766829041285,-151.0,0.00013156,2]
[399894833,1766829041295,-500.0,0.00013156,2]
[399894834,1766829041305,-151.0,0.00013156,2]
[399894835,1766829041314,-500.0,0.00013156,2]
[399894836,1766829041324,-500.0,0.00013156,2]
[399894837,1766829041334,-500.0,0.00013156,2]
[399894838,1766829041343,-500.0,0.00013156,2]
[399894839,1766829041353,-151.0,0.00013156,2]
[399894840,1766829041362,-151.0,0.00013156,2]
[399894841,1766829041372,-151.0,0.00013156,2]
[399894842,1766829041381,-151.0,0.00013156,2]
[399894843,1766829041391,-151.0,0.00013156,2]
[399894844,1766829041401,-151.0,0.00013156,2]
[399894845,1766829041410,-151.0,0.00013156,2]
[399894846,1766829041420,-151.0,0.00013156,2]
[399894847,1766829041429,-151.0,0.00013156,2]
[399894849,1766829041438,-151.0,0.00013156,2]
[399894850,1766829041448,-500.0,0.00013156,2]
[399894851,1766829041457,-151.0,0.00013156,2]
[399894853,1766829041466,-207.4,0.00013156,2]
[399894855,1766829041475,-1000.0,0.00013179,2]
[399894857,1766829041485,-1000.0,0.00013207,2]
[399894859,1766829041495,-1000.0,0.00013234,2]
[399894862,1766829041506,-1000.0,0.00013262,2]
[399894864,1766829041515,-15478.16933502,0.00013264,2]
[399894866,1766829041525,-1000.0,0.00013289,2]
[399894867,1766829041534,-1000.0,0.00013316,2]
[399894869,1766829041544,-1134.27,0.00013324,2]
[399894872,1766829041553,-500.0,0.00013342,2]
[399894873,1766829041563,-1000.0,0.00013344,2]
[399894875,1766829041573,-250.0,0.00013347,2]
[399894877,1766829041582,-1000.0,0.00013371,2]
[399894879,1766829041591,-1000.0,0.00013399,2]
[399894881,1766829041601,-1000.0,0.00013426,2]
[399894883,1766829041612,-1000.0,0.00013453,2]
[399894885,1766829041621,-209.46,0.00013456,2]
[399894887,1766829041630,-1000.0,0.00013481,2]
[399894889,1766829041640,-1021.0,0.00013508,2]
[399894891,1766829041649,-166.66,0.00013519,2]
[399894893,1766829041658,-166.66,0.00013593,2]
[399894895,1766829041668,-1134.27,0.00013598,2]
[399894897,1766829041679,-500.0,0.00013616,2]
[399894899,1766829041688,-1303.8523404,0.00013667,2]
[399894901,1766829041697,-162.35979,0.00013667,2]
[399894903,1766829041707,-151.0,0.00013667,2]
[399894905,1766829041716,-500.0,0.00013698,2]
[399894907,1766829041726,-500.0,0.00013698,2]
[399894909,1766829041735,-500.0,0.00013698,2]
[399894911,1766829041745,-500.0,0.00013698,2]
[399894913,1766829041757,-500.0,0.00013698,2]
[399894915,1766829041766,-500.0,0.00013698,2]
[399894917,1766829041775,-500.0,0.00013698,2]
[399894919,1766829041784,-500.0,0.00013698,2]
[399894921,1766829041794,-500.0,0.00013698,2]
[399894923,1766829041803,-500.0,0.00013698,2]
[399894925,1766829041812,-500.0,0.00013698,2]
[399894927,1766829041821,-500.0,0.00013698,2]
[399894929,1766829041830,-500.0,0.00013698,2]
[399894930,1766829041839,-500.0,0.00013698,2]
[399894932,1766829041849,-500.0,0.00013698,2]
[399894934,1766829041859,-11187.3,0.00013699,2]
[399894936,1766829041869,-16163.34,0.00013699,2]
[399894939,1766829041878,-200.0,0.00013699,2]
[399894940,1766829041888,-23350.52,0.00013699,2]
[399894943,1766829041898,-9999.99,0.00013699,2]
[399894945,1766829041908,-9135.11,0.00013699,2]
[399894946,1766829041917,-500.0,0.00013699,2]
[399894949,1766829041927,-500.0,0.00013699,2]
[399894950,1766829041937,-154.12331541,0.00013699,2]
[399894952,1766829041946,-151.0,0.00013699,2]
[399894955,1766829041958,-500.0,0.00013728,2]
[399894957,1766829041968,-5300.51636733,0.00013821,2]
[399894959,1766829041978,-334.59,0.00013843,2]
[399894961,1766829041988,-1134.27,0.00013872,2]
[399894963,1766829041998,-1000.0,0.00013947,2]
[399894964,1766829042007,-500.0,0.00014,2]
[399894966,1766829042017,-10000.0,0.00014053,2]
[399894968,1766829042026,-272.88185535,0.00014089,2]
[399894970,1766829042035,-300.0,0.00014094,2]
[399894972,1766829042045,-250.0,0.00014094,2]
[399894974,1766829042055,-1134.27,0.00014146,2]
[399894976,1766829042064,-255.0,0.00014158,2]
[399894978,1766829042074,-209.46,0.00014165,2]
[399894980,1766829042083,-195.0,0.00014166,2]
[399894982,1766829042092,-480.05752227,0.00014166,2]
[399894984,1766829042103,-250.0,0.00014166,2]
[399894986,1766829042112,-300.0,0.00014176,2]
[399894988,1766829042121,-150.0,0.00014201,2]
[399894990,1766829042132,-250.0,0.00014286,2]
[399894992,1766829042141,-600.0,0.00014297,2]
[399894994,1766829042151,-251.0,0.00014297,2]
[399894997,1766829042161,-300.0,0.00014297,2]
[399894998,1766829042171,-193.0,0.00014297,2]
[399895000,1766829042180,-195.0,0.00014297,2]
[399895002,1766829042190,-302.25080857,0.00014297,2]
[399895004,1766829042199,-420.0,0.00014309,2]
[399895006,1766829042208,-420.0,0.00014309,2]
[399895008,1766829042218,-420.0,0.0001431,2]
[399895010,1766829042227,-1680.0,0.0001431,2]
[399895012,1766829042237,-266.125656,0.00014353,2]
[399895014,1766829042246,-1680.0,0.00014353,2]
[399895016,1766829042256,-1600.0,0.0001437,2]
[399895018,1766829042266,-163.8745392,0.00014373,2]
[399895020,1766829042275,-500.0,0.00014373,2]
[399895023,1766829042285,-500.0,0.00014373,2]
[399895025,1766829042294,-505.52174355,0.00014373,2]
[399895026,1766829042304,-160.20652096,0.00014373,2]
[399895028,1766829042314,-500.0,0.00014373,2]
[399895030,1766829042323,-466.57897047,0.00014373,2]
[399895032,1766829042333,-500.0,0.00014373,2]
[399895034,1766829042342,-500.0,0.00014373,2]
[399895036,1766829042351,-172.76362866,0.00014373,2]
[399895038,1766829042360,-500.0,0.00014373,2]
[399895040,1766829042369,-500.0,0.00014373,2]
[399895042,1766829042379,-501.47157547,0.00014373,2]
[399895044,1766829042389,-500.81403771,0.00014373,2]
[399895046,1766829042398,-500.0,0.00014373,2]
[399895048,1766829042407,-500.0,0.00014373,2]
[399895050,1766829042417,-503.89734133,0.00014373,2]
[399895052,1766829042427,-500.73448024,0.00014373,2]
[399895054,1766829042436,-500.0,0.00014373,2]
[399895056,1766829042446,-1134.27,0.0001442,2]
[399895058,1766829042455,-152.0,0.00014494,2]
[399895060,1766829042465,-1257.0,0.00014494,2]
[399895062,1766829042474,-152.0,0.00014494,2]
[399895065,1766829042485,-1257.0,0.00014494,2]
[399895066,1766829042494,-152.0,0.00014494,2]
[399895068,1766829042504,-166.66,0.00014549,2]
[399895070,1766829042513,-175.08,0.00014594,2]
[399895072,1766829042523,-151.0,0.00014636,2]
[399895074,1766829042532,-151.0,0.00014636,2]
[399895076,1766829042542,-151.0,0.00014642,2]
[399895078,1766829042551,-151.0,0.00014642,2]
[399895080,1766829042560,-1134.27,0.00014694,2]
[399895082,1766829042570,-600.49407234,0.00014773,2]
[399895084,1766829042580,-1613.2558028,0.00014796,2]
[399895086,1766829042590,-678.4625878,0.00014832,2]
[399895089,1766829042599,-3261.0,0.00014871,2]
[399895091,1766829042609,-35701.0114009,0.00014872,2]
[399895092,1766829042619,-151.000007,0.00014872,2]
[399895095,1766829042628,-209.46,0.00014873,2]
[399895096,1766829042638,-500.0,0.00014921,2]
[399895098,1766829042647,-177.11753301,0.00014921,2]
[399895100,1766829042656,-403.31243356,0.00014921,2]
[399895102,1766829042666,-1000.0,0.00014921,2]
[399895104,1766829042678,-342.8792536,0.00014921,2]
[399895106,1766829042689,-1000.0,0.00014921,2]
[399895108,1766829042699,-1134.28,0.00014968,2]
[399895110,1766829042709,-10000.0,0.00015053,2]
[399895113,1766829042719,-881.79,0.00015068,2]
[399895115,1766829042731,-151.0,0.00015068,2]
[399895117,1766829042741,-359.9660256,0.00015178,2]
[399895119,1766829042751,-151.3854658,0.0001521,2]
[399895121,1766829042764,-7965.9723913,0.00015255,2]
[399895123,1766829042778,-433.0,0.00015359,2]
[399895125,1766829042787,-2416.33199777,0.00015414,2]
[399895127,1766829042796,-1500.0,0.00015468,2]
[399895129,1766829042806,-1500.0,0.00015468,2]
[399895131,1766829042815,-151.0,0.00015469,2]
[399895133,1766829042825,-9162.5,0.00015474,2]
[399895136,1766829042835,-151.0,0.00015474,2]
[399895138,1766829042844,-209.46,0.00015581,2]
[399895140,1766829042854,-1000.0,0.0001569,2]
[399895142,1766829042864,-587.0,0.00015691,2]
[399895143,1766829042880,-480.0,0.00015691,2]
[399895145,1766829042890,-203.0,0.00015692,2]
[399895147,1766829042899,-620.0,0.00015692,2]
[399895149,1766829042908,-892.0,0.00015788,2]
[399895151,1766829042918,-821.0,0.00015803,2]
[399895153,1766829042928,-821.0,0.00015833,2]
[399895155,1766829042937,-821.0,0.00015849,2]
[399895157,1766829042947,-821.0,0.00015863,2]
[399895159,1766829042956,-821.0,0.00015908,2]
[399895161,1766829042966,-821.0,0.00015937,2]
[399895163,1766829042975,-821.0,0.00015942,2]
[399895165,1766829042984,-821.0,0.00015945,2]
[399895167,1766829042994,-1600.0,0.00015967,2]
[399895169,1766829043004,-821.0,0.00015967,2]
[399895171,1766829043013,-42425.37708412,0.00016,4]
[399895173,1766829043023,-1000.0,0.00016016,2]
[399895175,1766829043033,-2000.0,0.00016016,2]
[399895177,1766829043042,-821.0,0.00016043,2]
[399895179,1766829043052,-10000.0,0.00016053,2]
[399895181,1766829043061,-821.0,0.00016061,2]
[399895183,1766829043071,-821.0,0.00016191,2]
[399895185,1766829043081,-5000.0,0.000162,5]
[399895187,1766829043091,-821.0,0.00016214,2]
[399895189,1766829043101,-821.0,0.00016226,2]
[399895191,1766829043110,-168.0,0.00016281,2]
[399895193,1766829043120,-209.46,0.00016289,2]
[399895195,1766829043130,-821.0,0.00016307,2]
[399895197,1766829043139,-500.0,0.00016423,2]
[399895199,1766829043148,-500.0,0.00016423,2]
[399895201,1766829043157,-821.0,0.00016423,2]
[399895203,1766829043167,-500.0,0.00016438,2]
[399895205,1766829043176,-500.0,0.00016438,2]
[399895207,1766829043186,-500.0,0.00016438,2]
[399895228,1766829043195,-500.0,0.00016438,2]
[399895230,1766829043393,-500.0,0.00016438,2]
[399895232,1766829043402,-500.0,0.00016438,2]
[399895234,1766829043411,-500.0,0.00016438,2]
[399895236,1766829043421,-500.0,0.00016438,2]
[399895238,1766829043431,-500.0,0.00016438,2]
[399895240,1766829043440,-500.0,0.00016438,2]
[399895242,1766829043449,-500.0,0.00016438,2]
[399895244,1766829043459,-500.0,0.00016438,2]
[399895246,1766829043468,-500.0,0.00016438,2]
[399895248,1766829043477,-500.0,0.00016438,2]
[399895250,1766829043487,-403.13991434,0.00016438,2]
[399895251,1766829043496,-500.0,0.00016438,2]
[399895253,1766829043506,-500.0,0.00016438,2]
[399895255,1766829043515,-500.0,0.00016438,2]
[399895257,1766829043524,-500.0,0.00016438,2]
[399895258,1766829043534,-499.99999999,0.00016438,2]
[399895259,1766829043543,-2987.2,0.00016438,2]